fUSD/lending_fUSD_20250616
["ID","MTS","AMOUNT","RATE_DAILY","PERIOD"]
[366114957,1750071043424,-490.0,0.00016438,2]
[366114958,1750071043434,-490.0,0.00016438,2]
[366114959,1750071043443,-1263.15,0.00016438,2]
[366114960,1750071043453,-490.0,0.00016438,2]
[366114961,1750071043465,-857.12,0.00016438,2]
[366114962,1750071043475,-490.0,0.00016438,2]
[366114963,1750071043485,-1742.81,0.00016438,2]
[366114964,1750071043495,-720.34,0.00016438,2]
[366114965,1750071043506,-490.0,0.00016438,2]
[366114966,1750071043516,-490.0,0.00016438,2]
[366114967,1750071043526,-490.0,0.00016438,2]
[366114968,1750071043537,-1255.72,0.00016438,2]
[366114969,1750071043548,-1453.01,0.00016438,2]
[366114970,1750071043558,-490.0,0.00016438,2]
[366114971,1750071043568,-1145.94,0.00016438,2]
[366114972,1750071043577,-490.0,0.00016438,2]
[366114973,1750071043587,-1139.09,0.00016438,2]
[366114974,1750071043597,-490.0,0.00016438,2]
[366114975,1750071043607,-489.45315941,0.00016438,2]
[366114976,1750071043617,-490.0,0.00016438,2]
[366114977,1750071043627,-490.0,0.00016438,2]
[366114978,1750071043637,-490.0,0.00016438,2]
[366114979,1750071043648,-490.0,0.00016438,2]
[366114980,1750071043658,-1326.1,0.00016438,2]
[366114981,1750071043669,-490.0,0.00016438,2]
[366114982,1750071043679,-490.0,0.00016438,2]
[366114983,1750071043689,-490.0,0.00016438,2]
[366114984,1750071043700,-490.0,0.00016438,2]
[366114985,1750071043710,-1675.42,0.00016438,2]
[366114986,1750071043720,-490.0,0.00016438,2]
[366114987,1750071043731,-490.0,0.00016438,2]
[366114988,1750071043740,-775.18,0.00016438,2]
[366114989,1750071043751,-490.0,0.00016438,2]
[366114990,1750071043765,-1602.72,0.00016438,2]
[366114991,1750071043775,-630.14,0.00016438,2]
[366114992,1750071043785,-1300.87,0.00016438,2]
[366114993,1750071043795,-1150.36,0.00016438,2]
[366114994,1750071043805,-490.0,0.00016438,2]
[366114995,1750071043815,-490.0,0.00016438,2]
[366114996,1750071043825,-490.0,0.00016438,2]
[366114997,1750071043835,-490.0,0.00016438,2]
[366114998,1750071043844,-490.0,0.00016438,2]
[366114999,1750071043854,-490.0,0.00016438,2]
[366115000,1750071043864,-490.0,0.00016438,2]
[366115001,1750071043874,-490.0,0.00016438,2]
[366115002,1750071043883,-490.0,0.00016438,2]
[366115003,1750071043893,-612.55,0.00016438,2]
[366115004,1750071043903,-557.87,0.00016438,2]
[366115005,1750071043913,-766.3,0.00016438,2]
[366115006,1750071043923,-250.0,0.00016438,2]
[366115007,1750071043933,-490.0,0.00016438,2]
[366115008,1750071043943,-490.0,0.00016438,2]
[366115009,1750071043953,-490.0,0.00016438,2]
[366115010,1750071043963,-150.0,0.00016438,2]
[366115011,1750071043973,-490.0,0.00016438,2]
[366115012,1750071043983,-490.0,0.00016438,2]
[366115013,1750071043993,-785.08,0.00016438,2]
[366115014,1750071044003,-535.84,0.00016438,2]
[366115015,1750071044014,-1448.82,0.00016438,2]
[366115016,1750071044024,-8909.232467,0.00016438,2]
[366115017,1750071044034,-8909.232467,0.00016438,2]
[366115018,1750071044043,-8909.232467,0.00016438,2]
[366115019,1750071044053,-8909.232467,0.00016438,2]
[366115020,1750071044063,-549.84,0.00016438,2]
[366115021,1750071044073,-8909.232467,0.00016438,2]
[366115022,1750071044083,-639.1,0.00016438,2]
[366115023,1750071044093,-1770.15,0.00016438,2]
[366115024,1750071044103,-2273.08,0.00016438,2]
[366115025,1750071044112,-574.31,0.00016438,2]
[366115026,1750071044123,-490.0,0.00016438,2]
[366115027,1750071044139,-490.0,0.00016438,2]
[366115028,1750071044149,-852.13,0.00016438,2]
[366115029,1750071044159,-1696.33,0.00016438,2]
[366115030,1750071044168,-490.0,0.00016438,2]
[366115031,1750071044178,-490.0,0.00016438,2]
[366115032,1750071044188,-490.0,0.00016438,2]
[366115033,1750071044198,-1455.0,0.00016438,2]
[366115034,1750071044207,-492.26547634,0.00016438,2]
[366115035,1750071044217,-7527.36,0.00016438,2]
[366115036,1750071044227,-490.0,0.00016438,2]
[366115037,1750071044237,-490.0,0.00016438,2]
[366115038,1750071044247,-490.0,0.00016438,2]
[366115039,1750071044257,-490.0,0.00016438,2]
[366115040,1750071044266,-490.0,0.00016438,2]
[366115041,1750071044276,-490.0,0.00016438,2]
[366115042,1750071044286,-490.0,0.00016438,2]
[366115043,1750071044296,-490.0,0.00016438,2]
[366115044,1750071044306,-490.0,0.00016438,2]
[366115045,1750071044316,-490.0,0.00016438,2]
[366115046,1750071044326,-332.37257497,0.00016438,2]
[366115047,1750071044335,-490.0,0.00016438,2]
[366115048,1750071044347,-1956.03,0.00016438,2]
[366115049,1750071044358,-421.36999699,0.00016438,2]
[366115050,1750071044368,-499.95443992,0.00016438,2]
[366115051,1750071044378,-490.0,0.00016438,2]
[366115052,1750071044388,-6234.105138,0.00016438,2]
[366115053,1750071044398,-6234.105138,0.00016438,2]
[366115054,1750071044408,-6234.105138,0.00016438,2]
[366115055,1750071044418,-490.0,0.00016438,2]
[366115056,1750071044427,-490.0,0.00016438,2]
[366115057,1750071044437,-6234.105138,0.00016438,2]
[366115058,1750071044446,-490.0,0.00016438,2]
[366115059,1750071044456,-1002.06,0.00016438,2]
[366115060,1750071044469,-6234.105138,0.00016438,2]
[366115061,1750071044479,-490.0,0.00016438,2]
[366115062,1750071044488,-1000.1,0.00016438,2]
[366115063,1750071044498,-490.0,0.00016438,2]
[366115064,1750071044507,-490.0,0.00016438,2]
[366115065,1750071044519,-902.88,0.00016438,2]
[366115066,1750071044529,-500.15395209,0.00016438,2]
[366115067,1750071044541,-490.0,0.00016438,2]
[366115068,1750071044552,-1681.88,0.00016438,2]
[366115069,1750071044562,-490.0,0.00016438,2]
[366115070,1750071044572,-490.0,0.00016438,2]
[366115071,1750071044582,-490.0,0.00016438,2]
[366115072,1750071044592,-490.0,0.00016438,2]
[366115073,1750071044603,-886.0,0.00016438,2]
[366115074,1750071044612,-451.2024598,0.00016438,2]
[366115075,1750071044622,-495.68,0.00016438,2]
[366115076,1750071044634,-490.0,0.00016438,2]
[366115077,1750071044644,-1745.51,0.00016438,2]
[366115078,1750071044653,-1456.17,0.00016438,2]
[366115079,1750071044663,-440.47452548,0.00016438,2]
[366115080,1750071044673,-490.0,0.00016438,2]
[366115081,1750071044683,-1868.38,0.00016438,2]
[366115082,1750071044693,-575.01,0.00016438,2]
[366115083,1750071044703,-1741.96,0.00016438,2]
[366115084,1750071044713,-490.0,0.00016438,2]
[366115085,1750071044723,-490.0,0.00016438,2]
[366115086,1750071044732,-624.15,0.00016438,2]
[366115087,1750071044742,-490.0,0.00016438,2]
[366115088,1750071044752,-490.0,0.00016438,2]
[366115089,1750071044762,-1076.82,0.00016438,2]
[366115090,1750071044772,-490.0,0.00016438,2]
[366115091,1750071044782,-1202.93,0.00016438,2]
[366115092,1750071044794,-675.31,0.00016438,2]
[366115093,1750071044803,-1196.06,0.00016438,2]
[366115094,1750071044813,-6034.51,0.00016438,2]
[366115095,1750071044823,-807.34,0.00016438,2]
[366115096,1750071044833,-490.0,0.00016438,2]
[366115097,1750071044843,-490.0,0.00016438,2]
[366115098,1750071044852,-490.0,0.00016438,2]
[366115099,1750071044862,-1093.23,0.00016438,2]
[366115100,1750071044872,-737.86,0.00016438,2]
[366115101,1750071044881,-490.0,0.00016438,2]
[366115102,1750071044891,-1135.46,0.00016438,2]
[366115103,1750071044900,-490.0,0.00016438,2]
[366115104,1750071044909,-500.87,0.00016438,2]
[366115105,1750071044919,-2669.45,0.00016438,2]
[366115106,1750071044928,-490.0,0.00016438,2]
[366115107,1750071044938,-609.95,0.00016438,2]
[366115108,1750071044948,-724.46,0.00016438,2]
[366115109,1750071044958,-490.0,0.00016438,2]
[366115110,1750071044968,-771.22,0.00016438,2]
[366115111,1750071044978,-490.0,0.00016438,2]
[366115112,1750071044987,-490.0,0.00016438,2]
[366115113,1750071044997,-854.42,0.00016438,2]
[366115114,1750071045007,-858.02,0.00016438,2]
[366115115,1750071045016,-490.0,0.00016438,2]
[366115116,1750071045026,-1081.78,0.00016438,2]
[366115117,1750071045036,-490.0,0.00016438,2]
[366115118,1750071045045,-972.08,0.00016438,2]
[366115119,1750071045056,-2242.83,0.00016438,2]
[366115120,1750071045065,-1036.56,0.00016438,2]
[366115121,1750071045075,-2835.91,0.00016438,2]
[366115122,1750071045084,-3945.06,0.00016438,2]
[366115123,1750071045094,-490.0,0.00016438,2]
[366115124,1750071045103,-490.0,0.00016438,2]
[366115125,1750071045113,-931.84,0.00016438,2]
[366115126,1750071045122,-490.0,0.00016438,2]
[366115127,1750071045132,-3728.55,0.00016438,2]
[366115128,1750071045142,-1314.08,0.00016438,2]
[366115129,1750071045151,-806.76,0.00016438,2]
[366115130,1750071045161,-490.0,0.00016438,2]
[366115131,1750071045170,-1458.64,0.00016438,2]
[366115132,1750071045180,-1629.39,0.00016438,2]
[366115133,1750071045189,-490.0,0.00016438,2]
[366115134,1750071045200,-16326.65,0.00016438,2]
[366115135,1750071045210,-491.61,0.00016438,2]
[366115136,1750071045220,-490.0,0.00016438,2]
[366115137,1750071045231,-1533.07,0.00016438,2]
[366115138,1750071045242,-8040.83,0.00016438,2]
[366115139,1750071045252,-490.0,0.00016438,2]
[366115140,1750071045263,-500.0,0.00016438,2]
[366115141,1750071045272,-2313.43,0.00016438,2]
[366115142,1750071045282,-3268.9,0.00016438,2]
[366115143,1750071045291,-531.72,0.00016438,2]
[366115144,1750071045301,-1335.13,0.00016438,2]
[366115145,1750071045312,-7145.95,0.00016438,2]
[366115146,1750071045321,-490.0,0.00016438,2]
[366115147,1750071045331,-490.0,0.00016438,2]
[366115148,1750071045341,-1101.63,0.00016438,2]
[366115149,1750071045350,-3760.72,0.00016438,2]
[366115150,1750071045360,-1341.82,0.00016438,2]
[366115151,1750071045370,-4533.41,0.00016438,2]
[366115152,1750071045379,-150.0,0.00016438,2]
[366115153,1750071045389,-4526.44,0.00016438,2]
[366115154,1750071045399,-1027.88,0.00016438,2]
[366115155,1750071045409,-490.0,0.00016438,2]
[366115156,1750071045419,-866.51,0.00016438,2]
[366115157,1750071045428,-1686.95,0.00016438,2]
[366115158,1750071045438,-1519.21,0.00016438,2]
[366115159,1750071045448,-409.16927831,0.00016438,2]
[366115160,1750071045457,-1111.49,0.00016438,2]
[366115161,1750071045469,-490.0,0.00016438,2]
[366115162,1750071045479,-490.0,0.00016438,2]
[366115163,1750071045489,-490.0,0.00016438,2]
[366115164,1750071045499,-993.49,0.00016438,2]
[366115165,1750071045510,-490.0,0.00016438,2]
[366115166,1750071045519,-490.0,0.00016438,2]
[366115167,1750071045529,-2111.0,0.00016438,2]
[366115168,1750071045539,-490.0,0.00016438,2]
[366115169,1750071045550,-1171.58,0.00016438,2]
[366115170,1750071045561,-3281.63,0.00016438,2]
[366115171,1750071045572,-490.0,0.00016438,2]
[366115172,1750071045582,-926.77,0.00016438,2]
[366115173,1750071045592,-642.84,0.00016438,2]
[366115174,1750071045602,-490.0,0.00016438,2]
[366115178,1750071046110,-490.0,0.00016438,2]
[366115179,1750071046148,-490.0,0.00016438,2]
[366115180,1750071046158,-1164.66,0.00016438,2]
[366115181,1750071046168,-1109.18,0.00016438,2]
[366115182,1750071046178,-13845.05,0.00016438,2]
[366115183,1750071046188,-490.0,0.00016438,2]
[366115184,1750071046197,-872.01,0.00016438,2]
[366115185,1750071046207,-1476.09,0.00016438,2]
[366115186,1750071046217,-490.0,0.00016438,2]
[366115187,1750071046227,-490.0,0.00016438,2]
[366115188,1750071046237,-1829.53,0.00016438,2]
[366115189,1750071046246,-490.0,0.00016438,2]
[366115190,1750071046256,-500.32,0.00016438,2]
[366115191,1750071046266,-1553.33,0.00016438,2]
[366115192,1750071046275,-1175.65,0.00016438,2]
[366115193,1750071046285,-3678.41,0.00016438,2]
[366115194,1750071046295,-4031.89,0.00016438,2]
[366115195,1750071046304,-745.89,0.00016438,2]
[366115196,1750071046314,-1450.38,0.00016438,2]
[366115197,1750071046324,-1031.64,0.00016438,2]
[366115198,1750071046334,-490.0,0.00016438,2]
[366115199,1750071046344,-597.32,0.00016438,2]
[366115200,1750071046353,-959.57,0.00016438,2]
[366115201,1750071046365,-1307.75,0.00016438,2]
[366115202,1750071046374,-490.0,0.00016438,2]
[366115203,1750071046384,-490.0,0.00016438,2]
[366115204,1750071046393,-2136.1,0.00016438,2]
[366115205,1750071046403,-490.0,0.00016438,2]
[366115206,1750071046413,-490.0,0.00016438,2]
[366115207,1750071046423,-1711.41,0.00016438,2]
[366115208,1750071046434,-872.56,0.00016438,2]
[366115209,1750071046446,-680.89,0.00016438,2]
[366115210,1750071046456,-3165.37,0.00016438,2]
[366115211,1750071046468,-1058.07,0.00016438,2]
[366115212,1750071046478,-1632.41,0.00016438,2]
[366115213,1750071046488,-490.0,0.00016438,2]
[366115214,1750071046498,-853.99,0.00016438,2]
[366115215,1750071046510,-5801.3,0.00016438,2]
[366115216,1750071046520,-1356.36,0.00016438,2]
[366115217,1750071046530,-490.0,0.00016438,2]
[366115218,1750071046540,-21131.57,0.00016438,2]
[366115219,1750071046550,-477.26711621,0.00016438,2]
[366115220,1750071046560,-734.34,0.00016438,2]
[366115221,1750071046570,-3168.13,0.00016438,2]
[366115222,1750071046585,-151.0,0.00016438,2]
[366115224,1750071046597,-490.0,0.00016438,2]
[366115226,1750071046607,-677.8,0.00016438,2]
[366115228,1750071046617,-490.0,0.00016438,2]
[366115231,1750071046627,-920.53,0.00016438,2]
[366115233,1750071046639,-490.0,0.00016438,2]
[366115235,1750071046648,-771.06,0.00016438,2]
[366115237,1750071046658,-524.5,0.00016438,2]
[366115238,1750071046668,-490.0,0.00016438,2]
[366115239,1750071046678,-490.0,0.00016438,2]
[366115240,1750071046687,-1283.02,0.00016438,2]
[366115241,1750071046698,-1541.66,0.00016438,2]
[366115242,1750071046707,-1650.09,0.00016438,2]
[366115243,1750071046717,-490.0,0.00016438,2]
[366115244,1750071046727,-2693.73,0.00016438,2]
[366115245,1750071046737,-917.23,0.00016438,2]
[366115246,1750071046747,-490.0,0.00016438,2]
[366115248,1750071046758,-490.0,0.00016438,2]
[366115250,1750071046768,-5376.14,0.00016438,2]
[366115251,1750071046778,-490.0,0.00016438,2]
[366115252,1750071046788,-490.0,0.00016438,2]
[366115253,1750071046798,-3042.71,0.00016438,2]
[366115254,1750071046808,-490.0,0.00016438,2]
[366115255,1750071046818,-974.6,0.00016438,2]
[366115256,1750071046827,-994.38,0.00016438,2]
[366115257,1750071046838,-1992.66,0.00016438,2]
[366115258,1750071046847,-754.41,0.00016438,2]
[366115259,1750071046857,-1609.79,0.00016438,2]
[366115260,1750071046867,-1038.03,0.00016438,2]
[366115261,1750071046876,-2097.23,0.00016438,2]
[366115262,1750071046886,-490.0,0.00016438,2]
[366115263,1750071046896,-1480.49,0.00016438,2]
[366115264,1750071046905,-490.0,0.00016438,2]
[366115265,1750071046915,-151.0,0.00016438,2]
[366115266,1750071046925,-490.0,0.00016438,2]
[366115267,1750071046934,-705.81,0.00016438,2]
[366115268,1750071046944,-862.07,0.00016438,2]
[366115269,1750071046953,-1236.91,0.00016438,2]
[366115270,1750071046963,-490.0,0.00016438,2]
[366115271,1750071046973,-500.0,0.00016438,2]
[366115272,1750071046983,-500.0,0.00016438,2]
[366115273,1750071046992,-985.58,0.00016438,2]
[366115274,1750071047002,-3145.35,0.00016438,2]
[366115275,1750071047012,-2804.25,0.00016438,2]
[366115276,1750071047022,-490.0,0.00016438,2]
[366115277,1750071047031,-490.0,0.00016438,2]
[366115278,1750071047041,-490.0,0.00016438,2]
[366115279,1750071047051,-490.0,0.00016438,2]
[366115280,1750071047062,-506.86804404,0.00016438,2]
[366115281,1750071047072,-490.0,0.00016438,2]
[366115282,1750071047082,-1096.04,0.00016438,2]
[366115283,1750071047092,-490.0,0.00016438,2]
[366115284,1750071047102,-490.0,0.00016438,2]
[366115285,1750071047111,-356.43569014,0.00016438,2]
[366115286,1750071047121,-1024.31,0.00016438,2]
[366115287,1750071047131,-1403.85,0.00016438,2]
[366115288,1750071047141,-661.32,0.00016438,2]
[366115289,1750071047151,-3073.4,0.00016438,2]
[366115290,1750071047160,-490.0,0.00016438,2]
[366115291,1750071047170,-714.64,0.00016438,2]
[366115292,1750071047180,-1209.04,0.00016438,2]
[366115293,1750071047190,-734.51,0.00016438,2]
[366115294,1750071047200,-809.34,0.00016438,2]
[366115295,1750071047210,-1302.55,0.00016438,2]
[366115296,1750071047220,-151.0,0.00016438,2]
[366115297,1750071047231,-1223.3,0.00016438,2]
[366115298,1750071047240,-649.01,0.00016438,2]
[366115299,1750071047251,-9123.73,0.00016438,2]
[366115300,1750071047262,-491.05134449,0.00016438,2]
[366115301,1750071047283,-516.08286717,0.00016438,2]
[366115302,1750071047297,-3395.14,0.00016438,2]
[366115303,1750071047307,-716.3,0.00016438,2]
[366115304,1750071047319,-3469.35,0.00016438,2]
[366115305,1750071047330,-775.29,0.00016438,2]
[366115306,1750071047340,-803.69,0.00016438,2]
[366115307,1750071047351,-1452.49,0.00016438,2]
[366115308,1750071047362,-596.18,0.00016438,2]
[366115309,1750071047373,-1043.06,0.00016438,2]
[366115310,1750071047384,-490.0,0.00016438,2]
[366115311,1750071047396,-490.0,0.00016438,2]
[366115312,1750071047407,-490.0,0.00016438,2]
[366115313,1750071047418,-921.02,0.00016438,2]
[366115314,1750071047428,-1090.28,0.00016438,2]
[366115315,1750071047439,-587.82,0.00016438,2]
[366115316,1750071047450,-8863.36,0.00016438,2]
[366115317,1750071047461,-764.14,0.00016438,2]
[366115318,1750071047476,-840.9,0.00016438,2]
[366115319,1750071047487,-490.0,0.00016438,2]
[366115320,1750071047498,-4147.88,0.00016438,2]
[366115321,1750071047511,-490.0,0.00016438,2]
[366115322,1750071047522,-490.0,0.00016438,2]
[366115323,1750071047534,-1140.11,0.00016438,2]
[366115324,1750071047546,-1140.68,0.00016438,2]
[366115325,1750071047558,-591.97733761,0.00016438,2]
[366115326,1750071047581,-490.0,0.00016438,2]
[366115327,1750071047605,-976.2,0.00016438,2]
[366115328,1750071047630,-3446.2,0.00016438,2]
[366115329,1750071047652,-490.0,0.00016438,2]
[366115330,1750071047682,-19733.24,0.00016438,2]
[366115331,1750071047713,-151.0,0.00016438,2]
[366115332,1750071047739,-1258.54,0.00016438,2]
[366115333,1750071047770,-584.11,0.00016438,2]
[366115334,1750071047812,-490.0,0.00016438,2]
[366115335,1750071047843,-151.0,0.00016438,2]
[366115336,1750071047865,-1362.58,0.00016438,2]
[366115337,1750071047876,-992.02,0.00016438,2]
[366115338,1750071047886,-490.0,0.00016438,2]
[366115339,1750071047903,-1000.0,0.00016438,3]
[366115340,1750071047914,-1000.0,0.00016438,3]
[366115341,1750071047926,-1000.0,0.00016438,3]
[366115342,1750071047936,-1000.0,0.00016438,3]
[366115343,1750071047947,-1000.0,0.00016438,3]
[366115344,1750071047958,-1000.0,0.00016438,3]
[366115345,1750071047969,-1000.0,0.00016438,3]
[366115346,1750071047979,-1000.0,0.00016438,3]
[366115347,1750071047990,-1000.0,0.00016438,3]
[366115348,1750071048000,-1000.0,0.00016438,3]
[366115349,1750071048012,-1000.0,0.00016438,3]
[366115350,1750071048023,-1000.0,0.00016438,3]
[366115351,1750071048035,-1000.0,0.00016438,3]
[366115352,1750071048045,-1000.0,0.00016438,3]
[366115353,1750071048057,-1000.0,0.00016438,3]
[366115354,1750071048067,-1000.0,0.00016438,3]
[366115355,1750071048078,-1000.0,0.00016438,3]
[366115356,1750071048089,-1000.0,0.00016438,3]
[366115357,1750071048100,-1000.0,0.00016438,3]
[366115358,1750071048112,-1000.0,0.00016438,3]
[366115359,1750071048123,-1000.0,0.00016438,3]
[366115360,1750071048134,-1000.0,0.00016438,3]
[366115361,1750071048145,-1000.0,0.00016438,3]
[366115362,1750071048157,-1000.0,0.00016438,3]
[366115363,1750071048167,-1000.0,0.00016438,3]
[366115364,1750071048178,-1004.0,0.00016438,3]
[366115365,1750071048189,-833.8156298,0.00016438,3]
[366115366,1750071048200,-156.31236705,0.00016461,2]
[366115367,1750071048211,-2939.0,0.00016462,2]
[366115368,1750071048221,-2000.0,0.00016465,2]
[366115369,1750071048233,-150.0,0.00016465,2]
[366115370,1750071048243,-150.0,0.00016465,2]
[366115371,1750071048254,-2000.0,0.00016467,2]
[366115372,1750071048267,-500.0,0.00016467,2]
[366115373,1750071048279,-2000.0,0.00016468,2]
[366115374,1750071048289,-500.0,0.00016468,2]
[366115375,1750071048300,-833.8156298,0.00016477,2]
[366115376,1750071048311,-171.0,0.00016486,2]
[366115377,1750071048322,-175.28608274,0.00016491,2]
[366115378,1750071048332,-166.95613145,0.00016493,2]
[366115379,1750071048343,-151.0,0.000165,2]
[366115380,1750071048354,-176.928895,0.000165,2]
[366115381,1750071048365,-151.0,0.000165,2]
[366115382,1750071048377,-176.928895,0.000165,2]
[366115383,1750071048387,-151.0,0.000165,2]
[366115384,1750071048398,-177.398591,0.000165,2]
[366115385,1750071048408,-151.0,0.000165,2]
[366115386,1750071048418,-151.0,0.000165,2]
[366115387,1750071048429,-151.0,0.000165,2]
[366115388,1750071048440,-778.305534,0.000165,2]
[366115389,1750071048451,-778.305534,0.000165,2]
[366115390,1750071048462,-943.062475,0.000165,2]
[366115391,1750071048476,-943.062475,0.000165,2]
[366115392,1750071048486,-1164.67,0.000165,2]
[366115393,1750071048497,-737.4,0.000165,2]
[366115394,1750071048509,-500.0,0.000165,6]
[366115395,1750071048519,-162.74938912,0.00016501,2]
[366115396,1750071048530,-1500.0,0.00016502,2]
[366115397,1750071048541,-171.0,0.00016527,2]
[366115398,1750071048554,-171.3747989,0.00016583,2]
[366115399,1750071048564,-151.0,0.00016584,2]
[366115400,1750071048575,-151.0,0.00016584,2]
[366115401,1750071048585,-156.31236705,0.00016584,2]
[366115402,1750071048596,-403.922873,0.00016589,2]
[366115403,1750071048607,-500.0,0.0001659,2]
[366115404,1750071048618,-137741.96329202,0.00016591,2]
[366115405,1750071049391,-1050.38674539,0.00016591,2]
[366115406,1750071049403,-671.60174354,0.00016591,2]
[366115407,1750071049893,-2859.57867916,0.00016438,2]
[366115408,1750071049904,-476.59485294,0.00016438,2]
[366115409,1750071049920,-354.91892458,0.00016438,2]
[366115410,1750071049939,-1337.615544,0.00016438,2]
[366115411,1750071049953,-410.30174383,0.00016438,2]
[366115412,1750071049975,-51.12025549,0.00016438,2]
[366115413,1750071049984,-1007.31,0.00016438,2]
[366115414,1750071049993,-151.0,0.00016438,2]
[366115415,1750071050003,-9528.56974451,0.00016591,2]
[366115416,1750071050015,-76222.24496569,0.00016591,2]
[366115417,1750071050505,-824.17429177,0.00016389,2]
[366115418,1750071050518,-1666.33633,0.00016591,2]
[366115419,1750071050568,-2677.22492716,0.00016591,2]
[366115420,1750071061061,168.0,0.00015284,2]
[366115421,1750071068704,800.0,0.00015068,2]
[366115422,1750071085846,1224.68,0.00015343,2]
[366115423,1750071101448,205.0,0.00015321,2]
[366115424,1750071101666,500.0,0.00015068,2]
[366115425,1750071146482,166.42,0.00015343,2]
[366115426,1750071160079,153.39,0.00015343,2]
[366115427,1750071160264,153.39,0.0001535,2]
[366115428,1750071160607,153.39,0.00015357,2]
[366115429,1750071160793,153.39,0.00015364,2]
[366115430,1750071160992,153.39,0.00015371,2]
[366115431,1750071161181,153.39,0.00015378,2]
[366115432,1750071161393,153.39,0.00015385,2]
[366115433,1750071161626,153.39,0.00015392,2]
[366115434,1750071161890,153.39,0.00015399,2]
[366115435,1750071162727,153.39,0.00015406,2]
[366115436,1750071162935,153.39,0.00015413,2]
[366115437,1750071163108,153.39,0.0001542,2]
[366115438,1750071188020,1341.594591,7.945e-05,2]
[366115439,1750071192696,211.0,0.00015321,2]
[366115440,1750071230277,1553.32,0.0001546,2]
[366115441,1750071255539,200.0,0.00014,2]
[366115442,1750071255854,200.0,0.00012,2]
[366115443,1750071305016,586.58,0.00015343,2]
[366115444,1750071305325,800.0,0.00015068,2]
[366115445,1750071323172,500.0,0.00015068,2]
[366115446,1750071338626,181.99753488,0.0001545,2]
[366115447,1750071386221,150.0,0.00015448,2]
[366115449,1750071470522,173.36,0.00015448,2]
[366115450,1750071486480,168.0,0.00015231,2]
[366115451,1750071491239,168.0,0.00015126,2]
[366115452,1750071495963,168.0,0.00015212,2]
[366115453,1750071499410,168.0,0.00015178,2]
[366115454,1750071504500,168.0,0.00015139,2]
[366115455,1750071509489,168.0,0.00015471,2]
[366115456,1750071513380,168.0,0.00015391,2]
[366115457,1750071525544,623.0,0.0001515,2]
[366115458,1750071550673,200.0,0.00015331,2]
[366115459,1750071555931,355.747581,0.00014,2]
[366115460,1750071574838,1637.2,0.00015448,2]
[366115461,1750071591751,1000.0,0.00015413,2]
[366115462,1750071610797,570.79,0.00015413,2]
[366115463,1750071643326,250.0,0.00015413,2]
[366115464,1750071648347,1735.82,0.00015413,2]
[366115465,1750071668610,1500.0,0.00015413,2]
[366115466,1750071685401,1039.822965,0.0001542,2]
[366115468,1750071731979,205.0,0.00014862,2]
[366115469,1750071803898,23900.0,0.00015239,2]
[366115470,1750071813753,666.0,0.00015413,2]
[366115471,1750071846253,200.0,0.00015336,2]